bitfinex/quotes_BTCUSD_20250206
["timestamp","ask_amount","ask_price","bid_price","bid_amount"]
[1738854933474,0.427534,98017.0,98009.0,0.00022407]
[1738854934307,0.53003765,98017.0,98009.0,0.00022407]
[1738854934888,0.53103765,98017.0,98009.0,0.00022407]
[1738854935107,0.55153075,98017.0,98009.0,0.00022407]
[1738854935377,0.4490271,98017.0,98016.0,0.00122407]
[1738854935570,0.1255,98017.0,98016.0,0.00022407]
[1738854935777,0.0803,98017.0,98016.0,0.00022407]
[1738854936002,0.0823,98017.0,98016.0,0.00022407]
[1738854936604,0.0793,98017.0,98016.0,0.00022407]
[1738854936859,0.06748494,98031.0,98016.0,0.00022407]
[1738854936860,0.153021,98026.0,98016.0,0.00022407]
[1738854937139,0.002,98017.0,98016.0,0.20427107]
[1738854937351,0.075,98028.0,98016.0,0.00022407]
[1738854937550,0.002,98017.0,98016.0,0.00022407]
[1738854937765,0.155034,98017.0,98016.0,0.00022407]
[1738854938368,0.002,98017.0,98016.0,0.00022407]
[1738854938572,0.002,98017.0,98016.0,0.15326007]
[1738854939012,0.077,98028.0,98016.0,0.00022407]
[1738854939212,0.153034,98017.0,98016.0,0.00022407]
[1738854939659,0.077,98028.0,98016.0,0.00022407]
[1738854939660,0.153023,98025.0,98016.0,0.00022407]
[1738854939863,0.08702254,98028.0,98021.0,0.00961411]
[1738854939864,0.08502254,98028.0,98021.0,0.00961411]
[1738854940011,0.153019,98027.0,98021.0,0.00961411]
[1738854940405,0.153034,98017.0,98016.0,0.00222407]
[1738854940607,0.153034,98017.0,98016.0,0.00022407]
[1738854941726,0.154034,98017.0,98016.0,0.00022407]
[1738854942172,0.3602451,98017.0,98016.0,0.00022407]
[1738854942375,0.54954327,98017.0,98016.0,0.00022407]
[1738854942548,0.54954327,98017.0,98016.0,0.00222407]
[1738854943165,0.56871187,98017.0,98016.0,0.00222407]
[1738854943376,0.61671187,98017.0,98016.0,0.00022407]
[1738854943590,0.56050077,98017.0,98016.0,0.00222407]
[1738854943964,0.58250077,98017.0,98016.0,0.00222407]
[1738854944329,0.58450077,98017.0,98016.0,0.00222407]
[1738854944530,0.56150077,98017.0,98016.0,0.00222407]
[1738854945199,0.56150077,98017.0,98016.0,0.00022407]
[1738854946004,0.56250077,98017.0,98016.0,0.00022407]
[1738854946409,0.56450077,98017.0,98016.0,0.00022407]
[1738854946929,0.56250077,98017.0,98016.0,0.00022407]
[1738854947328,0.56450077,98017.0,98016.0,0.00022407]
[1738854947733,0.62026962,98017.0,98016.0,0.00022407]
[1738854947954,0.56450077,98017.0,98016.0,0.00022407]
[1738854948558,0.303045,98010.0,98009.0,0.00022407]
[1738854948828,0.40554865,98010.0,98009.0,0.00022407]
[1738854950018,0.40654865,98010.0,98009.0,0.00022407]
[1738854950653,0.303045,98010.0,98009.0,0.00022407]
[1738854951068,0.305045,98010.0,98009.0,0.00022407]
[1738854952051,0.307045,98010.0,98009.0,0.00022407]
[1738854954902,0.154,98010.0,98009.0,0.00022407]
[1738854955144,0.307045,98010.0,98009.0,0.00022407]
[1738854955353,0.305045,98010.0,98009.0,0.00022407]
[1738854955780,0.304045,98010.0,98009.0,0.00022407]
[1738854956133,0.303045,98010.0,98009.0,0.00022407]
[1738854956616,0.304045,98010.0,98009.0,0.00022407]
[1738854957338,0.305045,98010.0,98009.0,0.00022407]
[1738854957962,0.304045,98010.0,98009.0,0.00022407]
[1738854958161,0.306045,98010.0,98009.0,0.00022407]
[1738854958366,0.304045,98010.0,98009.0,0.00022407]
[1738854958653,0.303045,98010.0,98009.0,0.00022407]
[1738854958846,0.40424475,98010.0,98009.0,0.00022407]
[1738854959269,0.5057484,98010.0,98009.0,0.00022407]
[1738854959441,0.40654865,98010.0,98009.0,0.00022407]
[1738854959621,0.40754865,98010.0,98009.0,0.00022407]
[1738854959873,0.304045,98010.0,98009.0,0.00022407]
[1738854960222,0.40554865,98010.0,98009.0,0.00022407]
[1738854960396,0.40654865,98010.0,98009.0,0.00022407]
[1738854960632,0.45614865,98010.0,98009.0,0.00022407]
[1738854961040,0.46442665,98010.0,98009.0,0.00022407]
[1738854961238,0.48742665,98010.0,98009.0,0.00122407]
[1738854961353,0.60171571,98010.0,98009.0,9.3e-07]
[1738854961557,0.153098,97976.0,97975.0,0.00961411]
[1738854961787,0.153098,97976.0,97975.0,0.00973737]
[1738854962185,0.20411,97986.0,97975.0,0.00973737]
[1738854962359,0.40672474,98006.0,97982.0,0.00961411]
[1738854962562,0.15,98003.0,97987.0,0.00961411]
[1738854962824,0.153072,97993.0,97987.0,0.00961411]
[1738854963051,0.15,97999.0,97984.0,0.03]
[1738854963373,0.153084,97985.0,97984.0,0.03]
[1738854963603,0.33410365,97985.0,97979.0,0.0001067]
[1738854963808,0.303092,97980.0,97979.0,0.0001067]
[1738854964014,0.75369565,97980.0,97979.0,0.0001067]
[1738854964631,0.77362019,97980.0,97979.0,0.0001067]
[1738854965302,0.326098,97976.0,97975.0,8.326e-05]
[1738854965501,0.42860165,97976.0,97975.0,8.326e-05]
[1738854966355,0.51870165,97976.0,97975.0,8.326e-05]
[1738854966561,0.53021243,97976.0,97975.0,8.326e-05]
[1738854966767,0.64371608,97976.0,97975.0,8.326e-05]
[1738854967006,0.153164,97935.0,97933.0,0.00961411]
[1738854967442,0.204217,97935.0,97929.0,0.00961411]
[1738854967648,0.18903539,97950.0,97929.0,0.00961411]
[1738854967822,0.18903539,97950.0,97926.0,0.00961411]
[1738854968058,0.153173,97928.0,97927.0,0.00983818]
[1738854968261,0.153172,97929.0,97927.0,0.00022407]
[1738854969060,0.18903539,97940.0,97927.0,0.00022407]
[1738854969061,0.15317,97931.0,97927.0,0.00022407]
[1738854969185,0.08162474,97928.0,97927.0,0.00022407]
[1738854969392,0.001,97928.0,97927.0,0.00922407]
[1738854969593,0.10350365,97928.0,97927.0,0.00922407]
[1738854969817,0.17930365,97928.0,97927.0,0.00922407]
[1738854970016,0.17930365,97928.0,97927.0,0.00622407]
[1738854970222,0.32930365,97928.0,97927.0,0.00622407]
[1738854970651,0.32830365,97928.0,97927.0,0.00022407]
[1738854970837,0.4374019,97928.0,97927.0,0.00022407]
[1738854971048,0.35665096,97928.0,97927.0,0.00222407]
[1738854971221,0.35665096,97928.0,97927.0,0.00022407]
[1738854971420,0.3899497,97928.0,97927.0,0.00022407]
[1738854971621,0.3959497,97928.0,97927.0,0.00022407]
[1738854972579,0.3989497,97928.0,97927.0,0.00022407]
[1738854972784,0.49736424,97928.0,97927.0,0.00022407]
[1738854972986,0.49436424,97928.0,97927.0,0.00022407]
[1738854973200,0.49736424,97928.0,97927.0,0.00022407]
[1738854973613,0.303189,97918.0,97917.0,0.00022407]
[1738854973820,0.40569265,97918.0,97917.0,0.00022407]
[1738854974023,0.42869265,97918.0,97917.0,0.00022407]
[1738854974836,0.40969265,97918.0,97917.0,0.00022407]
[1738854975037,0.49641132,97918.0,97917.0,0.00022407]
[1738854975364,0.51941132,97918.0,97917.0,0.00022407]
[1738854975537,0.42869265,97918.0,97917.0,0.00022407]
[1738854975865,0.43693438,97918.0,97917.0,0.00022407]
[1738854976051,0.43893438,97918.0,97917.0,0.00022407]
[1738854976480,0.43693438,97918.0,97917.0,0.00022407]
[1738854977290,0.43893438,97918.0,97917.0,0.00022407]
[1738854977538,0.48348376,97918.0,97917.0,0.00022407]
[1738854977745,0.42434809,97918.0,97917.0,0.00022407]
[1738854977950,0.42634809,97918.0,97917.0,0.00022407]
[1738854978363,0.42734809,97918.0,97917.0,0.00022407]
[1738854978567,0.32784444,97918.0,97917.0,0.00022407]
[1738854978777,0.32484444,97918.0,97917.0,0.00022407]
[1738854978986,0.01865544,97918.0,97917.0,0.00022407]
[1738854979186,0.02165544,97918.0,97917.0,0.00983818]
[1738854979599,0.17384444,97918.0,97917.0,0.00983818]
[1738854979811,0.02065544,97918.0,97917.0,0.00983818]
[1738854980245,0.01241371,97918.0,97917.0,0.00983818]
[1738854980657,0.16560271,97918.0,97917.0,0.00022407]
[1738854981080,0.16360271,97918.0,97917.0,0.00022407]
[1738854981294,0.58673973,97918.0,97917.0,0.00022407]
[1738854981549,0.49390636,97918.0,97917.0,0.00022407]
[1738854981749,0.49390636,97918.0,97917.0,0.00122407]
[1738854981868,0.49790636,97918.0,97917.0,0.00122407]
[1738854982077,0.49790636,97918.0,97917.0,0.00022407]
[1738854982271,0.49390636,97918.0,97917.0,0.00022407]
[1738854982473,0.59841001,97918.0,97917.0,0.00022407]
[1738854982697,0.62141001,97918.0,97917.0,0.00022407]
[1738854982942,0.62041001,97918.0,97917.0,0.00022407]
[1738854983117,0.51690636,97918.0,97917.0,0.00022407]
[1738854983682,0.53819275,97918.0,97917.0,0.00022407]
[1738854984091,0.86329275,97918.0,97917.0,0.00022407]
[1738854984308,0.86329275,97918.0,97910.0,0.00022407]
[1738854984309,0.326198,97912.0,97910.0,0.00022407]
[1738854984526,0.303225,97895.0,97890.0,0.00022428]
[1738854984735,0.303225,97895.0,97894.0,0.00068714]
[1738854984736,0.40572865,97895.0,97894.0,0.00068714]
[1738854984946,0.5039256,97895.0,97894.0,0.00068714]
[1738854985368,0.5269256,97895.0,97894.0,0.00068714]
[1738854985572,0.326231,97891.0,97890.0,0.00022428]
[1738854985800,0.326231,97891.0,97864.0,0.00022428]
[1738854985801,0.15,97877.0,97864.0,0.00022428]
[1738854986001,0.00038589,97889.0,97871.0,0.00035319]
[1738854986002,0.303261,97872.0,97871.0,0.00035319]
[1738854986205,0.40576465,97872.0,97871.0,0.00035319]
[1738854987436,0.303261,97872.0,97871.0,0.00035319]
[1738854987858,0.3132543,97872.0,97871.0,0.00035319]
[1738854988202,0.3142543,97872.0,97871.0,0.00035319]
[1738854988589,0.3132543,97872.0,97871.0,0.00035319]
[1738854988995,0.3152543,97872.0,97871.0,0.00035319]
[1738854989237,0.38868676,97872.0,97871.0,0.00035319]
[1738854989434,0.3132543,97872.0,97871.0,0.00035319]
[1738854989885,0.32244046,97872.0,97871.0,0.00035319]
[1738854990719,0.01218616,97872.0,97871.0,0.15361519]
[1738854990900,0.01218616,97872.0,97871.0,0.00035319]
[1738854991318,0.01118616,97872.0,97871.0,0.00035319]
[1738854991479,0.01218616,97872.0,97871.0,0.00035319]
[1738854991904,0.00918616,97872.0,97871.0,0.00035319]
[1738854992082,0.00818616,97872.0,97871.0,0.15361519]
[1738854992278,0.00818616,97872.0,97871.0,0.11247095]
[1738854992476,0.00818616,97872.0,97871.0,0.26573295]
[1738854992993,0.01033494,97900.0,97898.0,0.00961411]
[1738854993196,0.0132223,97903.0,97902.0,0.00961411]
[1738854993616,0.0132223,97903.0,97902.0,0.11313907]
[1738854993818,0.0132223,97903.0,97902.0,0.11211776]
[1738854994244,0.0132223,97903.0,97901.0,0.00961411]
[1738854994412,0.153204,97909.0,97907.0,0.00961411]
[1738854994653,0.204266,97912.0,97907.0,0.00961411]
[1738854994776,0.153201,97911.0,97907.0,0.00961411]
[1738854995250,0.153203,97909.0,97907.0,0.00961411]
[1738854995463,0.153203,97909.0,97901.0,4.629e-05]
[1738854995464,0.204269,97910.0,97902.0,0.004]
[1738854995666,0.153214,97902.0,97901.0,0.00104629]
[1738854995867,0.303214,97902.0,97901.0,4.629e-05]
[1738854996638,0.47387824,97902.0,97901.0,4.629e-05]
[1738854996848,0.49687824,97902.0,97901.0,4.629e-05]
[1738854997070,0.153214,97902.0,97901.0,4.629e-05]
[1738854997628,0.153214,97902.0,97901.0,0.00104629]
[1738854998030,0.42871765,97902.0,97901.0,0.00104629]
[1738854999356,0.42871765,97902.0,97871.0,0.0003069]
[1738854999357,0.303261,97872.0,97871.0,0.0003069]
[1738854999575,0.45909075,97872.0,97871.0,0.00044613]
[1738854999780,0.42876465,97872.0,97871.0,0.00044613]
[1738855000397,0.326267,97868.0,97867.0,0.00022428]
[1738855000629,0.42877065,97868.0,97867.0,0.00036354]
[1738855001494,0.43477065,97868.0,97867.0,0.00036354]
[1738855001901,0.45018755,97868.0,97867.0,0.00036354]
[1738855002318,0.45218755,97868.0,97867.0,0.00036354]
[1738855002565,0.53627617,97868.0,97867.0,0.00036354]
[1738855002767,0.45018755,97868.0,97867.0,0.00036354]
[1738855003171,0.45318755,97868.0,97867.0,0.00036354]
[1738855003730,0.45818755,97868.0,97867.0,0.00036354]
[1738855003957,0.45318755,97868.0,97867.0,0.00036354]
[1738855004153,0.53741476,97868.0,97867.0,0.00036354]
[1738855004385,0.54341476,97868.0,97867.0,0.00036354]
[1738855004595,0.8752975,97868.0,97867.0,0.00036354]
[1738855004744,0.8822975,97868.0,97867.0,0.00036354]
[1738855004944,0.8882975,97868.0,97867.0,0.00036354]
[1738855005153,0.8902975,97868.0,97867.0,0.00036354]
[1738855005570,0.8882975,97868.0,97867.0,0.00036354]
[1738855005773,0.8912975,97868.0,97867.0,0.00036354]
[1738855005990,0.89168339,97868.0,97867.0,0.00036354]
[1738855006410,0.87590065,97868.0,97867.0,0.00036354]
[1738855006637,0.41835789,97865.0,97864.0,1e-08]
[1738855006841,0.153324,97832.0,97831.0,0.0002]
[1738855007059,0.42882765,97832.0,97831.0,0.00033878]
[1738855007262,0.42882765,97832.0,97798.0,0.00968411]
[1738855007263,0.153372,97801.0,97798.0,7e-05]
[1738855007475,0.40587565,97801.0,97798.0,7e-05]
[1738855007686,0.42887565,97801.0,97798.0,7e-05]
[1738855008320,0.42729255,97801.0,97798.0,7e-05]
[1738855008531,0.43143126,97801.0,97798.0,7e-05]
[1738855008753,0.42743126,97801.0,97798.0,7e-05]
[1738855009163,0.53733728,97801.0,97798.0,7e-05]
[1738855009370,0.52863126,97801.0,97798.0,7e-05]
[1738855009589,0.52701715,97801.0,97798.0,7e-05]
[1738855009854,0.52801715,97801.0,97798.0,7e-05]
[1738855010097,0.55394166,97801.0,97800.0,0.94621479]
[1738855010309,0.56673221,97801.0,97800.0,0.86000653]
[1738855010517,0.56173221,97801.0,97800.0,0.79614935]
[1738855010725,0.56573221,97801.0,97800.0,0.69170872]
[1738855010931,0.57581718,97801.0,97800.0,0.41406776]
[1738855011138,0.58581718,97801.0,97800.0,0.29553908]
[1738855011346,0.023,97772.0,97740.0,0.000292]
[1738855011547,0.303449,97752.0,97740.0,0.000292]
[1738855011747,0.40595265,97752.0,97740.0,0.000292]
[1738855012516,0.41593858,97752.0,97740.0,0.000292]
[1738855012917,0.43904229,97752.0,97740.0,0.000292]
[1738855013149,0.53306608,97752.0,97740.0,0.000292]
[1738855013349,0.53345197,97752.0,97740.0,0.000292]
[1738855013574,0.54130335,97752.0,97740.0,0.000292]
[1738855013747,0.54168924,97752.0,97740.0,0.000292]
[1738855013947,0.44727956,97752.0,97740.0,0.000292]
[1738855014158,0.4681526,97752.0,97740.0,0.000292]
[1738855014358,0.46853849,97752.0,97740.0,0.000292]
[1738855014557,0.4771526,97752.0,97740.0,0.000292]
[1738855014995,0.45127956,97752.0,97740.0,0.000292]
[1738855015200,0.27827956,97752.0,97740.0,0.000292]
[1738855015428,0.26429363,97752.0,97740.0,0.000292]
[1738855015904,0.26729363,97752.0,97740.0,0.000292]
[1738855016119,0.34645471,97752.0,97740.0,0.000292]
[1738855016319,0.51645471,97752.0,97740.0,0.000292]
[1738855016533,0.45455399,97752.0,97740.0,0.000292]
[1738855016705,0.44955399,97752.0,97740.0,0.000292]
[1738855016907,0.44131672,97752.0,97740.0,0.000292]
[1738855017114,0.44731672,97752.0,97740.0,0.000292]
[1738855017316,0.53296689,97752.0,97740.0,0.000292]
[1738855017934,0.53096689,97752.0,97740.0,0.000292]
[1738855018336,0.44131672,97752.0,97740.0,0.000292]
[1738855018912,0.41631672,97752.0,97740.0,0.000292]
[1738855019324,0.41931672,97752.0,97740.0,0.000292]
[1738855019751,0.42231672,97752.0,97740.0,0.000292]
[1738855020065,0.41631672,97752.0,97740.0,0.000292]
[1738855020311,0.52786689,97752.0,97740.0,0.000292]
[1738855020721,0.173,97751.0,97700.0,0.00513177]
[1738855020941,0.15,97734.0,97700.0,0.00513177]
[1738855021145,0.10250365,97743.0,97700.0,0.00513177]
[1738855021146,0.303491,97726.0,97702.0,0.204704]
[1738855021354,0.15,97726.0,97704.0,0.204699]
[1738855021534,0.15,97726.0,97717.0,0.153503]
[1738855021747,0.153495,97723.0,97715.0,0.153507]
[1738855021972,0.15,97726.0,97702.0,0.204704]
[1738855022194,0.153494,97724.0,97716.0,0.153505]
[1738855022409,0.10250365,97733.0,97701.0,0.10250365]
[1738855022410,0.153507,97715.0,97701.0,0.10250365]
[1738855022559,0.153507,97715.0,97707.0,0.153519]
[1738855022761,0.204671,97718.0,97717.0,0.001]
[1738855022966,0.358173,97718.0,97717.0,0.001]
[1738855023589,0.35831154,97718.0,97717.0,0.001]
[1738855024007,0.50831154,97718.0,97717.0,0.001]
[1738855024325,0.61081519,97718.0,97717.0,0.001107]
[1738855024710,0.61081519,97718.0,97717.0,0.000107]
[1738855025497,0.61081519,97718.0,97690.0,0.153545]
[1738855025498,0.15,97715.0,97689.0,0.20473]
[1738855025696,0.15,97713.0,97671.0,0.0002]
[1738855025904,0.204685,97711.0,97682.0,0.10352731]
[1738855026078,0.15,97713.0,97682.0,0.10250365]
[1738855026280,0.15,97713.0,97694.0,0.204719]
[1738855026483,0.08162474,97709.0,97682.0,0.204746]
[1738855026711,0.08162474,97709.0,97683.0,0.10352726]
[1738855026913,0.08162474,97709.0,97683.0,0.10250365]
[1738855027335,0.11466963,97708.0,97691.0,0.153545]
[1738855027485,0.153531,97700.0,97691.0,0.153545]
[1738855027679,0.153533,97699.0,97691.0,0.153545]
[1738855027908,0.11466963,97708.0,97681.0,0.006419]
[1738855028157,0.176559,97682.0,97681.0,0.006419]
[1738855028315,0.2146892,97682.0,97681.0,0.006419]
[1738855028513,0.46719285,97682.0,97681.0,0.006419]
[1738855028735,0.42906265,97682.0,97681.0,0.006419]
[1738855029141,0.43911948,97682.0,97681.0,0.006419]
[1738855029749,0.44325794,97682.0,97681.0,0.006419]
[1738855030189,0.44925794,97682.0,97681.0,0.006419]
[1738855030475,0.45325794,97682.0,97681.0,0.006419]
[1738855030661,0.45225794,97682.0,97681.0,0.006419]
[1738855031060,0.44325794,97682.0,97681.0,0.006419]
[1738855031398,0.41020111,97682.0,97681.0,0.006419]
[1738855031557,0.42920111,97682.0,97681.0,0.006419]
[1738855031761,0.43120111,97682.0,97681.0,0.006419]
[1738855031926,0.41520111,97682.0,97681.0,0.006419]
[1738855032303,0.51866942,97682.0,97681.0,0.006419]
[1738855032857,0.41520111,97682.0,97681.0,0.006419]
[1738855033055,0.30569746,97682.0,97681.0,0.006419]
[1738855033266,0.00213846,97682.0,97681.0,0.15998]
[1738855033463,0.00813846,97682.0,97681.0,0.15998]
[1738855033664,0.00213846,97682.0,97681.0,0.26248365]
[1738855034233,0.08162474,97709.0,97681.0,0.26248365]
[1738855034234,0.08162474,97709.0,97708.0,0.153518]
[1738855034436,0.08162474,97709.0,97708.0,0.25602165]
[1738855034699,0.08162474,97731.0,97708.0,0.25602165]
[1738855034700,0.08162474,97731.0,97730.0,0.153484]
[1738855034856,0.08162474,97731.0,97730.0,0.25598765]
[1738855035081,0.09020347,97759.0,97746.0,0.153458]
[1738855035442,0.09020347,97759.0,97750.0,0.153452]
[1738855036027,0.09020347,97759.0,97750.0,0.25595565]
[1738855036237,0.01009933,97751.0,97750.0,0.25595565]
[1738855036858,0.01009933,97751.0,97750.0,0.153452]
[1738855037070,0.01009933,97751.0,97746.0,0.20761]
[1738855037279,0.01109933,97751.0,97750.0,0.002]
[1738855038262,0.31455033,97751.0,97750.0,0.002]
[1738855038461,0.153474,97737.0,97723.0,0.153493]
[1738855038664,0.153469,97740.0,97726.0,0.153489]
[1738855038861,0.153469,97739.0,97725.0,0.15349]
[1738855039084,0.153472,97738.0,97724.0,0.153492]
[1738855039285,0.153481,97732.0,97705.0,0.0465]
[1738855039490,0.15,97745.0,97706.0,0.10352696]
[1738855039710,0.15,97743.0,97706.0,0.10352696]
[1738855039914,0.15,97740.0,97709.0,0.204687]
[1738855040160,0.15,97740.0,97705.0,0.0465]
[1738855040161,0.15,97740.0,97725.0,0.003]
[1738855040366,0.15,97739.0,97725.0,0.003]
[1738855040522,0.10250365,97742.0,97725.0,0.003]
[1738855040523,0.002,97732.0,97725.0,0.003]
[1738855040737,0.15,97741.0,97728.0,0.153486]
[1738855040935,0.15,97741.0,97725.0,0.003]
[1738855041141,0.153482,97731.0,97725.0,0.003]
[1738855041462,0.15,97737.0,97708.0,0.204689]
[1738855041675,0.15,97741.0,97705.0,0.0465]
[1738855041872,0.001,97732.0,97723.0,0.153493]
[1738855042069,0.153484,97730.0,97716.0,0.153505]
[1738855042274,0.001,97732.0,97716.0,0.153505]
[1738855042430,0.001,97732.0,97725.0,0.001]
[1738855042647,0.001,97732.0,97730.0,0.153483]
[1738855043162,0.001,97732.0,97731.0,0.10250365]
[1738855043372,0.001,97732.0,97731.0,0.10352687]
[1738855043589,0.204548,97777.0,97731.0,0.10352687]
[1738855043790,0.0815,97794.0,97750.0,0.153452]
[1738855043791,0.023,97793.0,97750.0,0.153452]
[1738855044007,0.153417,97773.0,97750.0,0.153452]
[1738855044231,0.20452,97790.0,97750.0,0.25595565]
[1738855044439,0.153387,97792.0,97750.0,0.25595565]
[1738855044661,0.0815,97807.0,97750.0,0.25595565]
[1738855044662,0.0466,97814.0,97778.0,0.153408]
[1738855044865,0.0466,97814.0,97778.0,0.10250365]
[1738855045066,0.15338,97797.0,97757.0,0.15]
[1738855045269,0.204498,97801.0,97759.0,0.15]
[1738855045472,0.01022679,97811.0,97760.0,0.10250365]
[1738855045815,0.153414,97775.0,97761.0,0.153435]
[1738855046020,0.10250365,97798.0,97763.0,0.204576]
[1738855046235,0.15,97796.0,97764.0,0.204574]
[1738855046413,0.153414,97775.0,97761.0,0.10250365]
[1738855046666,0.153402,97783.0,97765.0,0.153428]
[1738855046873,0.15341,97777.0,97761.0,0.10250365]
[1738855047087,0.153408,97779.0,97761.0,0.25593865]
[1738855047291,0.204532,97784.0,97761.0,0.25593865]
[1738855047507,0.204515,97792.0,97762.0,0.204578]
[1738855047722,0.204515,97792.0,97750.0,0.02138319]
[1738855047723,0.08162474,97789.0,97750.0,0.00046278]
[1738855047926,0.153434,97762.0,97750.0,0.00046278]
[1738855048138,0.153434,97762.0,97761.0,0.005]
[1738855048315,0.153435,97761.0,97750.0,0.00046278]
[1738855048556,0.15,97777.0,97761.0,0.002]
[1738855048766,0.00022491,97775.0,97761.0,0.002]
[1738855048982,0.00022491,97775.0,97763.0,0.15343]
[1738855049187,0.00022491,97775.0,97761.0,0.002]
[1738855049188,0.15022491,97775.0,97761.0,0.002]
[1738855049392,0.00022491,97775.0,97761.0,0.002]
[1738855049570,0.153427,97767.0,97761.0,0.002]
[1738855049838,0.00022491,97775.0,97761.0,0.002]
[1738855050510,0.00022491,97775.0,97763.0,0.15343]
[1738855050685,0.00022491,97775.0,97765.0,0.153428]
[1738855050913,0.00022491,97775.0,97752.0,0.204599]
[1738855050914,0.00022491,97775.0,97767.0,0.153425]
[1738855051139,0.00022491,97775.0,97753.0,0.00102282]
[1738855051354,0.00022491,97775.0,97750.0,0.29328292]
[1738855051355,0.00022491,97775.0,97773.0,0.153415]
[1738855051559,0.00122491,97775.0,97774.0,0.10352623]
[1738855051771,0.00222491,97775.0,97774.0,0.10250365]
[1738855051978,0.00122491,97775.0,97774.0,0.10250365]
[1738855052186,0.00122491,97775.0,97773.0,0.153415]
[1738855052187,0.00022491,97775.0,97773.0,0.153415]
[1738855052600,0.00122491,97775.0,97773.0,0.153415]
[1738855052824,0.00122491,97775.0,97754.0,0.204594]
[1738855053031,0.00122491,97775.0,97774.0,0.002]
[1738855053942,0.00022491,97775.0,97774.0,0.25791865]
[1738855054161,0.00022491,97775.0,97774.0,0.002]
[1738855054375,0.00022491,97775.0,97774.0,0.005]
[1738855054600,0.00022491,97775.0,97773.0,0.03]
[1738855054805,0.00022491,97775.0,97774.0,0.156415]
[1738855055010,0.00022491,97775.0,97774.0,0.003]
[1738855055226,0.00022491,97775.0,97773.0,0.032]
[1738855055624,0.00022491,97775.0,97774.0,0.157415]
[1738855056034,0.00022491,97775.0,97774.0,0.159415]
[1738855056182,0.00022491,97775.0,97774.0,0.26294135]
[1738855056386,0.00022491,97775.0,97774.0,0.26191865]
[1738855056795,0.00022491,97775.0,97774.0,0.25791865]
[1738855057190,0.00022491,97775.0,97774.0,0.26091865]
[1738855057408,0.00022491,97775.0,97774.0,0.25791865]
[1738855057904,0.00122491,97775.0,97774.0,0.26291865]
[1738855058099,0.00122491,97775.0,97774.0,0.25791865]
[1738855058327,0.00222491,97775.0,97774.0,0.26591865]
[1738855058531,0.00222491,97775.0,97774.0,0.26391865]
[1738855058940,0.00222491,97775.0,97774.0,0.008]
[1738855059096,0.00222491,97775.0,97774.0,0.011]
[1738855059497,0.15563791,97775.0,97774.0,0.011]
[1738855059772,0.00222491,97775.0,97774.0,0.011]
[1738855060266,0.00222491,97775.0,97773.0,0.03]
[1738855060267,0.15022491,97775.0,97773.0,0.03]
[1738855060410,0.153451,97751.0,97742.0,0.01012887]
[1738855060611,0.303451,97751.0,97732.0,0.08162474]
[1738855060814,0.40595465,97751.0,97722.0,0.204661]
[1738855061017,0.40595465,97751.0,97719.0,0.204667]
[1738855061221,0.40595465,97751.0,97724.0,0.204656]
[1738855061421,0.303451,97751.0,97724.0,0.204656]
[1738855061643,0.303451,97751.0,97731.0,0.153482]
[1738855061868,0.308451,97751.0,97750.0,0.00146278]
[1738855062068,0.43395465,97751.0,97750.0,0.00146278]
[1738855062650,0.005,97751.0,97750.0,0.00146278]
[1738855062966,0.158451,97751.0,97750.0,0.00146278]
[1738855063388,0.162451,97751.0,97750.0,0.00146278]
[1738855063595,0.163451,97751.0,97750.0,0.00146278]
[1738855063795,0.154451,97751.0,97750.0,0.00046278]
[1738855064003,0.159451,97751.0,97750.0,0.00146278]
[1738855064361,0.159451,97751.0,97750.0,0.00046278]
[1738855064587,0.161451,97751.0,97750.0,0.00046278]
[1738855064820,0.156451,97751.0,97750.0,0.00046278]
[1738855064973,0.153451,97751.0,97750.0,0.00046278]
[1738855065333,0.004,97751.0,97750.0,0.00046278]
[1738855065685,0.16531627,97751.0,97750.0,0.00046278]
[1738855065910,0.43867882,97751.0,97750.0,0.00046278]
[1738855066623,0.43467882,97751.0,97750.0,0.00046278]
[1738855066814,0.41481992,97751.0,97750.0,0.00046278]
[1738855066958,0.41881992,97751.0,97750.0,0.00046278]
[1738855067158,0.43920893,97751.0,97750.0,0.00046278]
[1738855067362,0.44020893,97751.0,97750.0,0.00046278]
[1738855067567,0.44420893,97751.0,97750.0,0.00046278]
[1738855067766,0.44020893,97751.0,97750.0,0.00046278]
[1738855068059,0.43920893,97751.0,97750.0,0.00046278]
[1738855068278,0.47890544,97751.0,97750.0,0.00046278]
[1738855068510,0.54550544,97751.0,97750.0,0.00046278]
[1738855069060,0.54550544,97751.0,97700.0,0.0001071]
[1738855069061,0.153513,97711.0,97700.0,0.0001071]
[1738855069272,0.10250365,97711.0,97700.0,0.0001071]
[1738855069465,0.153529,97701.0,97700.0,0.0001071]
[1738855069664,0.303529,97701.0,97700.0,0.0001071]
[1738855070072,0.10250365,97710.0,97700.0,0.0001071]
[1738855070395,0.0004638,97701.0,97700.0,0.0001071]
[1738855071032,0.0094638,97701.0,97700.0,0.0011071]
[1738855071232,0.0094638,97701.0,97700.0,0.0001071]
[1738855071645,0.0134638,97701.0,97700.0,0.0001071]
[1738855072812,0.0144638,97701.0,97700.0,0.0001071]
[1738855073149,0.0134638,97701.0,97700.0,0.0001071]
[1738855073356,0.0044638,97701.0,97700.0,0.0001071]
[1738855073594,0.1504638,97701.0,97700.0,0.0021071]
[1738855073805,0.1544638,97701.0,97700.0,0.0021071]
[1738855074085,0.25696745,97701.0,97700.0,0.0001071]
[1738855074289,0.338957,97701.0,97700.0,0.0001071]
[1738855074492,0.338957,97701.0,97700.0,0.0031071]
[1738855074689,0.338957,97701.0,97682.0,0.0001071]
[1738855074690,0.303557,97683.0,97682.0,0.0001071]
[1738855074894,0.40606065,97683.0,97682.0,0.0001071]
[1738855075315,0.48796065,97683.0,97682.0,0.0001071]
[1738855075513,0.59993999,97683.0,97682.0,0.0001071]
[1738855076167,0.303564,97679.0,97678.0,0.01666667]
[1738855076368,0.40606765,97679.0,97678.0,0.01666667]
[1738855076769,0.42906765,97679.0,97678.0,0.01666667]
[1738855076954,0.303583,97667.0,97666.0,0.01181242]
[1738855077101,0.49808665,97667.0,97666.0,0.01181242]
[1738855077297,0.52810827,97667.0,97666.0,0.01181242]
[1738855077497,0.48808665,97667.0,97666.0,0.01181242]
[1738855077695,0.51810827,97667.0,97666.0,0.01181242]
[1738855077905,0.153595,97659.0,97631.0,0.0002]
[1738855078151,0.25609865,97659.0,97631.0,0.0002]
[1738855078358,0.40609865,97659.0,97632.0,0.153637]
[1738855078621,0.04262629,97667.0,97637.0,0.0816]